[Event "Late-Titled-Tuesday-Blitz-January-23-2024"]
[Site "Chess.com"]
[Date "2024.01.23"]
[Round "11"]
[White "jefferyx"]
[Black "Rodalquilar"]
[Result "1-0"]
[WhiteElo "2985"]
[BlackElo "2769"]
[TimeControl "180+1"]
[EndTime "16:02:11 PST"]
[Termination "jefferyx won by resignation"]

1. d4 {[%clk 0:02:56.6]} 1... d5 {[%clk 0:02:59.8]} 2. c4 {[%clk 0:02:56.7]}
2... e6 {[%clk 0:03:00.2]} 3. Nf3 {[%clk 0:02:57.1]} 3... Nf6 {[%clk 0:03:00]}
4. Nc3 {[%clk 0:02:57.3]} 4... h6 {[%clk 0:02:59.8]} 5. e3 {[%clk 0:02:53.7]}
5... Nbd7 {[%clk 0:02:57.6]} 6. b3 {[%clk 0:02:53.1]} 6... a6 {[%clk 0:02:55.4]}
7. Bb2 {[%clk 0:02:53.2]} 7... b6 {[%clk 0:02:50.4]} 8. Bd3 {[%clk 0:02:53.2]}
8... dxc4 {[%clk 0:02:41.4]} 9. bxc4 {[%clk 0:02:52.6]} 9... Bb7 {[%clk
0:02:41.9]} 10. e4 {[%clk 0:02:52.8]} 10... e5 {[%clk 0:02:42]} 11. d5 {[%clk
0:02:48.9]} 11... Bd6 {[%clk 0:02:35.6]} 12. O-O {[%clk 0:02:49.2]} 12... O-O
{[%clk 0:02:35.3]} 13. Bc2 {[%clk 0:02:43.6]} 13... Re8 {[%clk 0:02:29.7]} 14.
Ne2 {[%clk 0:02:43.5]} 14... Nc5 {[%clk 0:02:24]} 15. Ng3 {[%clk 0:02:43.7]}
15... Bc8 {[%clk 0:02:24.5]} 16. h3 {[%clk 0:02:43.4]} 16... Bd7 {[%clk
0:02:10.8]} 17. Bc3 {[%clk 0:02:40.2]} 17... b5 {[%clk 0:02:02.9]} 18. cxb5
{[%clk 0:02:37]} 18... axb5 {[%clk 0:02:03.2]} 19. Re1 {[%clk 0:02:37.2]} 19...
Nh7 {[%clk 0:01:52.8]} 20. Bd2 {[%clk 0:02:21.1]} 20... Na4 {[%clk 0:01:47.3]}
21. Bb3 {[%clk 0:02:16.5]} 21... Nc5 {[%clk 0:01:45.4]} 22. Qc2 {[%clk
0:02:15.7]} 22... Nxb3 {[%clk 0:01:36.6]} 23. axb3 {[%clk 0:02:15.5]} 23... Qe7
{[%clk 0:01:36.8]} 24. Rac1 {[%clk 0:02:10]} 24... Ra3 {[%clk 0:01:34.2]} 25.
Bc3 {[%clk 0:02:02.9]} 25... Rea8 {[%clk 0:01:31.3]} 26. Bb2 {[%clk 0:02:01.8]}
26... Ra2 {[%clk 0:01:31.5]} 27. Qb1 {[%clk 0:02:02.2]} 27... Ng5 {[%clk
0:01:29.2]} 28. Nxg5 {[%clk 0:01:55]} 28... Qxg5 {[%clk 0:01:29.3]} 29. Re2
{[%clk 0:01:35.4]} 29... h5 {[%clk 0:01:26.4]} 30. Rce1 {[%clk 0:01:26]} 30...
g6 {[%clk 0:01:19.5]} 31. Bc1 {[%clk 0:01:17]} 31... Rxe2 {[%clk 0:00:36.7]} 32.
Bxg5 {[%clk 0:01:16.5]} 32... Rea2 {[%clk 0:00:35.1]} 33. Qd1 {[%clk 0:01:07.7]}
33... Bc5 {[%clk 0:00:31.7]} 34. Rf1 {[%clk 0:00:56.2]} 34... Bd4 {[%clk
0:00:31.5]} 35. Nxh5 {[%clk 0:00:47]} 35... gxh5 {[%clk 0:00:27]} 36. Qxh5
{[%clk 0:00:47.9]} 36... R8a6 {[%clk 0:00:26.3]} 37. Qh4 {[%clk 0:00:48.1]}
37... Rxf2 {[%clk 0:00:18.6]} 38. Rxf2 {[%clk 0:00:48.1]} 38... Ra2 {[%clk
0:00:18.9]} 39. Be3 {[%clk 0:00:41.2]} 39... Ra1+ {[%clk 0:00:12.9]} 40. Kh2
{[%clk 0:00:41.3]} 40... Bxe3 {[%clk 0:00:12.9]} 41. Qg3+ {[%clk 0:00:41.8]}
41... Kf8 {[%clk 0:00:12.9]} 42. Qxe3 {[%clk 0:00:42.1]} 1-0

[Event "Late-Titled-Tuesday-Blitz-January-23-2024"]
[Site "Chess.com"]
[Date "2024.01.23"]
[Round "11"]
[White "Grandmaster2B"]
[Black "DefiantChair"]
[Result "1-0"]
[WhiteElo "2780"]
[BlackElo "2586"]
[TimeControl "180+1"]
[EndTime "16:02:12 PST"]
[Termination "Grandmaster2B won by resignation"]

1. d4 {[%clk 0:03:00.9]} 1... Nf6 {[%clk 0:02:59.8]} 2. c4 {[%clk 0:02:59.9]}
2... e6 {[%clk 0:03:00.1]} 3. g3 {[%clk 0:02:57.3]} 3... d5 {[%clk 0:02:59.5]}
4. Bg2 {[%clk 0:02:57.7]} 4... dxc4 {[%clk 0:02:59.8]} 5. Nf3 {[%clk 0:02:58.1]}
5... a6 {[%clk 0:02:59.8]} 6. O-O {[%clk 0:02:58.3]} 6... Nc6 {[%clk 0:03:00.3]}
7. Bg5 {[%clk 0:02:58.6]} 7... Be7 {[%clk 0:03:00]} 8. e3 {[%clk 0:02:59.2]}
8... Rb8 {[%clk 0:02:57]} 9. Qc1 {[%clk 0:02:57.1]} 9... b5 {[%clk 0:02:54.3]}
10. b3 {[%clk 0:02:56.9]} 10... Na5 {[%clk 0:02:54.4]} 11. Nbd2 {[%clk
0:02:56.6]} 11... cxb3 {[%clk 0:02:50.3]} 12. axb3 {[%clk 0:02:57.5]} 12... c6
{[%clk 0:02:45.4]} 13. Ne5 {[%clk 0:02:45.5]} 13... Bb7 {[%clk 0:02:35.6]} 14.
Bxf6 {[%clk 0:02:25.6]} 14... gxf6 {[%clk 0:02:35.2]} 15. Nxc6 {[%clk
0:02:24.2]} 15... Bxc6 {[%clk 0:02:24.7]} 16. Bxc6+ {[%clk 0:02:25.1]} 16... Kf8
{[%clk 0:02:24.8]} 17. Bg2 {[%clk 0:02:20.9]} 17... Bb4 {[%clk 0:02:24.9]} 18.
Ne4 {[%clk 0:02:17.9]} 18... Rc8 {[%clk 0:01:54.2]} 19. Qb2 {[%clk 0:02:15.8]}
19... h5 {[%clk 0:01:50.4]} 20. Rad1 {[%clk 0:01:40.7]} 20... Rh6 {[%clk
0:01:35.7]} 21. Nc5 {[%clk 0:01:33.7]} 21... h4 {[%clk 0:01:29.8]} 22. Nxa6
{[%clk 0:01:32.1]} 22... hxg3 {[%clk 0:01:27.2]} 23. Nxb4 {[%clk 0:01:23.8]}
23... Rxh2 {[%clk 0:01:21.1]} 24. fxg3 {[%clk 0:01:22.4]} 24... Rh6 {[%clk
0:01:20]} 25. Nd3 {[%clk 0:01:14.1]} 25... Qd6 {[%clk 0:01:17.8]} 26. Rf3 {[%clk
0:01:10.9]} 26... Kg7 {[%clk 0:01:17.1]} 27. Rdf1 {[%clk 0:01:10.1]} 27... Rch8
{[%clk 0:01:16.4]} 28. Qc3 {[%clk 0:01:05.9]} 28... Nc6 {[%clk 0:01:16]} 29. Qc5
{[%clk 0:00:58.6]} 29... Qd7 {[%clk 0:01:14.7]} 30. Qxb5 {[%clk 0:00:43.5]}
30... Qd6 {[%clk 0:01:08.9]} 31. Qc5 {[%clk 0:00:42.5]} 31... Qd7 {[%clk
0:01:08.7]} 32. b4 {[%clk 0:00:42.8]} 32... Ne7 {[%clk 0:01:05.6]} 33. Rxf6
{[%clk 0:00:40]} 33... Rxf6 {[%clk 0:01:03.2]} 34. Rxf6 {[%clk 0:00:40.9]} 34...
Nf5 {[%clk 0:00:54.9]} 35. Qe5 {[%clk 0:00:39.1]} 35... Kg8 {[%clk 0:00:54.9]}
36. g4 {[%clk 0:00:32.6]} 36... Nh4 {[%clk 0:00:37]} 37. Qg5+ {[%clk 0:00:32.5]}
37... Kf8 {[%clk 0:00:36.6]} 38. Ne5 {[%clk 0:00:32.9]} 38... Qd6 {[%clk
0:00:31.9]} 39. Rxf7+ {[%clk 0:00:26]} 39... Ke8 {[%clk 0:00:32.4]} 40. Bc6+
{[%clk 0:00:25.9]} 1-0

[Event "Late-Titled-Tuesday-Blitz-January-23-2024"]
[Site "Chess.com"]
[Date "2024.01.23"]
[Round "11"]
[White "ITheOnlyME"]
[Black "StellarChess"]
[Result "1-0"]
[WhiteElo "2404"]
[BlackElo "2476"]
[TimeControl "180+1"]
[EndTime "16:02:24 PST"]
[Termination "ITheOnlyME won by resignation"]

1. d4 {[%clk 0:03:00.9]} 1... d5 {[%clk 0:02:57.6]} 2. Bf4 {[%clk 0:03:00.8]}
2... a6 {[%clk 0:02:49.3]} 3. e3 {[%clk 0:02:59.6]} 3... b5 {[%clk 0:02:47.6]}
4. Nf3 {[%clk 0:02:57.5]} 4... Bb7 {[%clk 0:02:47.8]} 5. Nbd2 {[%clk 0:02:54.7]}
5... Nf6 {[%clk 0:02:47.6]} 6. a4 {[%clk 0:02:54.1]} 6... b4 {[%clk 0:02:45]} 7.
Bd3 {[%clk 0:02:54.2]} 7... Nbd7 {[%clk 0:02:41.8]} 8. O-O {[%clk 0:02:49.4]}
8... e6 {[%clk 0:02:41.6]} 9. c4 {[%clk 0:02:49.2]} 9... c5 {[%clk 0:02:38.5]}
10. Nb3 {[%clk 0:02:38.3]} 10... dxc4 {[%clk 0:02:36.7]} 11. Bxc4 {[%clk
0:02:38.6]} 11... Be7 {[%clk 0:02:30.4]} 12. Ne5 {[%clk 0:02:35.5]} 12... cxd4
{[%clk 0:02:25.5]} 13. Qxd4 {[%clk 0:02:34]} 13... Nxe5 {[%clk 0:02:23]} 14.
Bxe5 {[%clk 0:02:31.2]} 14... Qxd4 {[%clk 0:02:21.9]} 15. Nxd4 {[%clk
0:02:29.1]} 15... O-O {[%clk 0:02:21.6]} 16. Rac1 {[%clk 0:02:23.9]} 16... Rfd8
{[%clk 0:02:03.1]} 17. Bb3 {[%clk 0:02:16.4]} 17... Rdc8 {[%clk 0:01:40.2]} 18.
a5 {[%clk 0:02:10.2]} 18... Rxc1 {[%clk 0:01:37.9]} 19. Rxc1 {[%clk 0:02:09.8]}
19... Rc8 {[%clk 0:01:38.8]} 20. Rxc8+ {[%clk 0:02:06.2]} 20... Bxc8 {[%clk
0:01:39.7]} 21. Nc6 {[%clk 0:02:06.6]} 21... Bf8 {[%clk 0:01:35]} 22. Bc4 {[%clk
0:01:54.4]} 22... Nd7 {[%clk 0:01:16.3]} 23. Bc7 {[%clk 0:01:54.1]} 23... Bb7
{[%clk 0:01:05.9]} 24. Nd8 {[%clk 0:01:42.8]} 24... Bc8 {[%clk 0:00:57.7]} 25.
Kf1 {[%clk 0:01:36.7]} 25... Nc5 {[%clk 0:00:45.6]} 26. Nc6 {[%clk 0:01:30.2]}
26... Ne4 {[%clk 0:00:41.1]} 27. Ke2 {[%clk 0:01:22.1]} 27... Bb7 {[%clk
0:00:34]} 28. Nb8 {[%clk 0:01:19.8]} 28... Nc5 {[%clk 0:00:28.7]} 29. Bb6 {[%clk
0:01:15.4]} 29... Bxg2 {[%clk 0:00:26.5]} 30. Bxc5 {[%clk 0:01:11.5]} 30... Bxc5
{[%clk 0:00:27.4]} 31. Nxa6 {[%clk 0:01:10.5]} 31... Bd6 {[%clk 0:00:25.4]} 32.
Kd3 {[%clk 0:00:57.3]} 32... Bxh2 {[%clk 0:00:18.9]} 33. Nxb4 {[%clk 0:00:56.4]}
33... h5 {[%clk 0:00:19.7]} 34. a6 {[%clk 0:00:53.4]} 34... Ba8 {[%clk
0:00:18.6]} 35. Bb5 {[%clk 0:00:51.3]} 35... h4 {[%clk 0:00:17.9]} 36. Bc6
{[%clk 0:00:51.7]} 36... Bd6 {[%clk 0:00:13.1]} 37. Bxa8 {[%clk 0:00:42.2]}
37... Bxb4 {[%clk 0:00:13.4]} 38. Kc4 {[%clk 0:00:39.1]} 38... Ba5 {[%clk
0:00:05.4]} 39. Kb5 {[%clk 0:00:39.6]} 39... Bb6 {[%clk 0:00:06]} 40. Kxb6
{[%clk 0:00:39.8]} 40... h3 {[%clk 0:00:06.2]} 41. Bh1 {[%clk 0:00:39.1]} 41...
g5 {[%clk 0:00:05.2]} 42. a7 {[%clk 0:00:39.5]} 1-0

[Event "Late-Titled-Tuesday-Blitz-January-23-2024"]
[Site "Chess.com"]
[Date "2024.01.23"]
[Round "11"]
[White "maximnovik"]
[Black "AlexOstrovskiy"]
[Result "1-0"]
[WhiteElo "2597"]
[BlackElo "2740"]
[TimeControl "180+1"]
[EndTime "16:02:31 PST"]
[Termination "maximnovik won on time"]

1. e4 {[%clk 0:03:00.1]} 1... d5 {[%clk 0:02:51.3]} 2. exd5 {[%clk 0:02:59.4]}
2... Nf6 {[%clk 0:02:51.5]} 3. c4 {[%clk 0:02:58.4]} 3... e6 {[%clk 0:02:51.5]}
4. dxe6 {[%clk 0:02:58.3]} 4... Bxe6 {[%clk 0:02:52.4]} 5. Nf3 {[%clk
0:02:55.6]} 5... Qe7 {[%clk 0:02:46.9]} 6. Be2 {[%clk 0:02:55.6]} 6... Bxc4
{[%clk 0:02:44.4]} 7. d3 {[%clk 0:02:55.9]} 7... Be6 {[%clk 0:02:41.7]} 8. O-O
{[%clk 0:02:56]} 8... Nc6 {[%clk 0:02:42.3]} 9. Nc3 {[%clk 0:02:55.1]} 9...
O-O-O {[%clk 0:02:41.8]} 10. Be3 {[%clk 0:02:47.4]} 10... Nd5 {[%clk 0:02:37.6]}
11. Nxd5 {[%clk 0:02:41.7]} 11... Bxd5 {[%clk 0:02:38.5]} 12. Rc1 {[%clk
0:02:40.5]} 12... Qd7 {[%clk 0:02:20]} 13. Qa4 {[%clk 0:02:31.4]} 13... a6
{[%clk 0:02:20.1]} 14. Rc3 {[%clk 0:01:58.6]} 14... Be7 {[%clk 0:02:02.9]} 15.
Rfc1 {[%clk 0:01:58]} 15... Bf6 {[%clk 0:02:03]} 16. d4 {[%clk 0:01:56.4]} 16...
Nb8 {[%clk 0:01:26.3]} 17. Bf4 {[%clk 0:01:12.9]} 17... c6 {[%clk 0:00:50.2]}
18. Ne5 {[%clk 0:01:12.4]} 18... Bxe5 {[%clk 0:00:48.8]} 19. Bxe5 {[%clk
0:01:12.6]} 19... f6 {[%clk 0:00:46.3]} 20. Bg3 {[%clk 0:01:12.3]} 20... Rhe8
{[%clk 0:00:44.3]} 21. Bf1 {[%clk 0:01:11.3]} 21... g5 {[%clk 0:00:35.2]} 22.
Qa5 {[%clk 0:01:09.7]} 22... h5 {[%clk 0:00:32.9]} 23. h3 {[%clk 0:01:01]} 23...
h4 {[%clk 0:00:31.9]} 24. Bh2 {[%clk 0:01:01.2]} 24... Re4 {[%clk 0:00:26]} 25.
Qb6 {[%clk 0:01:00.6]} 25... Qe7 {[%clk 0:00:06.9]} 26. Qa7 {[%clk 0:00:58.4]}
26... Rd6 {[%clk 0:00:06.4]} 27. Bxd6 {[%clk 0:00:52.2]} 27... Qxd6 {[%clk
0:00:07.3]} 28. Bd3 {[%clk 0:00:51]} 28... Re7 {[%clk 0:00:04.4]} 29. Bf5+
{[%clk 0:00:50.9]} 29... Kc7 {[%clk 0:00:04.8]} 30. Qc5 {[%clk 0:00:50.2]} 30...
Qd8 {[%clk 0:00:03.8]} 31. Re3 {[%clk 0:00:48.9]} 31... Rxe3 {[%clk 0:00:03.2]}
32. fxe3 {[%clk 0:00:49.3]} 32... Qd6 {[%clk 0:00:02.3]} 33. Qxd6+ {[%clk
0:00:49.1]} 33... Kxd6 {[%clk 0:00:03.2]} 34. e4 {[%clk 0:00:49.1]} 34... Bxa2
{[%clk 0:00:03.1]} 35. Kf2 {[%clk 0:00:48.2]} 35... Bf7 {[%clk 0:00:02.1]} 36.
Ke3 {[%clk 0:00:47.5]} 36... a5 {[%clk 0:00:02.6]} 37. Rf1 {[%clk 0:00:45.3]}
37... Na6 {[%clk 0:00:02.8]} 38. Bc8 {[%clk 0:00:44.9]} 38... Ke7 {[%clk
0:00:01.8]} 39. Bxb7 {[%clk 0:00:44.6]} 39... Nb4 {[%clk 0:00:02.7]} 40. Rc1
{[%clk 0:00:42.3]} 40... Be8 {[%clk 0:00:02]} 41. Kd2 {[%clk 0:00:40.6]} 41...
Bd7 {[%clk 0:00:02.1]} 42. Ra1 {[%clk 0:00:40.2]} 1-0

[Event "Late-Titled-Tuesday-Blitz-January-23-2024"]
[Site "Chess.com"]
[Date "2024.01.23"]
[Round "11"]
[White "Mops_2004"]
[Black "Oleksandr_Bortnyk"]
[Result "0-1"]
[WhiteElo "2876"]
[BlackElo "3052"]
[TimeControl "180+1"]
[EndTime "16:02:33 PST"]
[Termination "Oleksandr_Bortnyk won by resignation"]

1. Nf3 {[%clk 0:03:00.9]} 1... Nf6 {[%clk 0:02:59.3]} 2. g3 {[%clk 0:03:00.9]}
2... b6 {[%clk 0:02:59.4]} 3. Bg2 {[%clk 0:03:01]} 3... Bb7 {[%clk 0:03:00.3]}
4. O-O {[%clk 0:03:01.3]} 4... g6 {[%clk 0:03:00.9]} 5. c4 {[%clk 0:03:00.9]}
5... Bg7 {[%clk 0:03:01.4]} 6. d4 {[%clk 0:03:01.6]} 6... O-O {[%clk 0:03:01.8]}
7. d5 {[%clk 0:03:02.3]} 7... Na6 {[%clk 0:03:01.7]} 8. Nc3 {[%clk 0:03:01.1]}
8... Nc5 {[%clk 0:03:02.1]} 9. Qc2 {[%clk 0:03:00.7]} 9... Ne8 {[%clk
0:02:53.3]} 10. Rb1 {[%clk 0:02:53.8]} 10... a5 {[%clk 0:02:53.2]} 11. b3 {[%clk
0:02:40.9]} 11... Nd6 {[%clk 0:02:51.8]} 12. Bb2 {[%clk 0:02:41.1]} 12... e5
{[%clk 0:02:52.3]} 13. dxe6 {[%clk 0:02:40.5]} 13... dxe6 {[%clk 0:02:51]} 14.
Rbd1 {[%clk 0:02:34.7]} 14... Qe7 {[%clk 0:02:44.2]} 15. Ne1 {[%clk 0:02:32.8]}
15... Bxg2 {[%clk 0:02:28.2]} 16. Nxg2 {[%clk 0:02:32.8]} 16... a4 {[%clk
0:02:29.1]} 17. Nf4 {[%clk 0:02:09.1]} 17... axb3 {[%clk 0:02:24.6]} 18. axb3
{[%clk 0:02:10]} 18... Rfd8 {[%clk 0:02:09]} 19. Nd3 {[%clk 0:02:09.4]} 19...
Qg5 {[%clk 0:01:55.6]} 20. Nb4 {[%clk 0:01:51.6]} 20... Qf5 {[%clk 0:01:43.5]}
21. Nd3 {[%clk 0:01:30.2]} 21... h5 {[%clk 0:01:28.7]} 22. h4 {[%clk 0:01:18.9]}
22... Rd7 {[%clk 0:01:17.9]} 23. Rd2 {[%clk 0:00:57.7]} 23... Nde4 {[%clk
0:01:16.1]} 24. Nxe4 {[%clk 0:00:51]} 24... Nxe4 {[%clk 0:01:17]} 25. Rdd1
{[%clk 0:00:50.9]} 25... Ra2 {[%clk 0:01:08.6]} 26. Qb1 {[%clk 0:00:48.4]} 26...
Ra8 {[%clk 0:00:23.2]} 27. Bxg7 {[%clk 0:00:48.4]} 27... Kxg7 {[%clk 0:00:24.1]}
28. Qb2+ {[%clk 0:00:46.3]} 28... Qf6 {[%clk 0:00:21.2]} 29. Qxf6+ {[%clk
0:00:37.8]} 29... Kxf6 {[%clk 0:00:22.1]} 30. Ra1 {[%clk 0:00:38]} 30... Rxa1
{[%clk 0:00:20.2]} 31. Rxa1 {[%clk 0:00:37.9]} 31... Nc3 {[%clk 0:00:21.1]} 32.
Kf1 {[%clk 0:00:36.3]} 32... e5 {[%clk 0:00:19.9]} 33. Ke1 {[%clk 0:00:34.5]}
33... Ne4 {[%clk 0:00:19.3]} 34. Ra7 {[%clk 0:00:27.6]} 34... Ke6 {[%clk
0:00:18.6]} 35. Ra8 {[%clk 0:00:26.8]} 35... f6 {[%clk 0:00:17.9]} 36. Rg8
{[%clk 0:00:26.8]} 36... Kf7 {[%clk 0:00:18]} 37. Rc8 {[%clk 0:00:27.4]} 37...
Nc3 {[%clk 0:00:17.9]} 38. Kd2 {[%clk 0:00:22.2]} 38... Ne4+ {[%clk 0:00:18.4]}
39. Ke3 {[%clk 0:00:22.7]} 39... Nd6 {[%clk 0:00:17.7]} 40. Ra8 {[%clk 0:00:22]}
40... Nf5+ {[%clk 0:00:18.2]} 41. Ke4 {[%clk 0:00:16.3]} 41... Rd4+ {[%clk
0:00:15.4]} 0-1

[Event "Late-Titled-Tuesday-Blitz-January-23-2024"]
[Site "Chess.com"]
[Date "2024.01.23"]
[Round "11"]
[White "OneTrickPony_82"]
[Black "angelgab3"]
[Result "0-1"]
[WhiteElo "2512"]
[BlackElo "2699"]
[TimeControl "180+1"]
[EndTime "16:02:35 PST"]
[Termination "angelgab3 won on time"]

1. d4 {[%clk 0:03:00.9]} 1... Nf6 {[%clk 0:02:59.5]} 2. c4 {[%clk 0:03:01.1]}
2... e6 {[%clk 0:03:00]} 3. Nf3 {[%clk 0:03:01.3]} 3... d5 {[%clk 0:03:00.9]} 4.
Nc3 {[%clk 0:03:01.4]} 4... dxc4 {[%clk 0:03:01.3]} 5. e4 {[%clk 0:03:01.1]}
5... b5 {[%clk 0:03:01.7]} 6. Nxb5 {[%clk 0:02:59.6]} 6... Nxe4 {[%clk 0:03:02]}
7. Qa4 {[%clk 0:03:00]} 7... c6 {[%clk 0:02:39.1]} 8. Nc3 {[%clk 0:02:59.4]}
8... Nd6 {[%clk 0:02:38.9]} 9. Ne5 {[%clk 0:02:55.9]} 9... Be7 {[%clk
0:02:36.6]} 10. Nxc6 {[%clk 0:02:43.3]} 10... Nxc6 {[%clk 0:02:35.7]} 11. Qxc6+
{[%clk 0:02:43.1]} 11... Bd7 {[%clk 0:02:36.6]} 12. Qf3 {[%clk 0:02:40.3]} 12...
O-O {[%clk 0:02:36]} 13. Be2 {[%clk 0:02:37.8]} 13... Nf5 {[%clk 0:02:35.9]} 14.
Be3 {[%clk 0:02:16.7]} 14... Rb8 {[%clk 0:02:33.8]} 15. Bxc4 {[%clk 0:02:11.9]}
15... Rxb2 {[%clk 0:02:32.2]} 16. O-O {[%clk 0:02:08.8]} 16... Qc7 {[%clk
0:02:12.7]} 17. Nd1 {[%clk 0:01:57.1]} 17... Rb4 {[%clk 0:02:04.7]} 18. Bd3
{[%clk 0:01:42.5]} 18... Nxd4 {[%clk 0:02:02.9]} 19. Qh3 {[%clk 0:01:39.8]}
19... Nf5 {[%clk 0:01:44.4]} 20. g4 {[%clk 0:01:15.9]} 20... Qd6 {[%clk
0:01:21.1]} 21. Bc2 {[%clk 0:00:53.9]} 21... Rc8 {[%clk 0:01:13.9]} 22. Rc1
{[%clk 0:00:49.8]} 22... Rbc4 {[%clk 0:01:05.6]} 23. Bxf5 {[%clk 0:00:27.3]}
23... exf5 {[%clk 0:00:56.4]} 24. Rxc4 {[%clk 0:00:27.9]} 24... Rxc4 {[%clk
0:00:54.5]} 25. gxf5 {[%clk 0:00:28.5]} 25... Qf6 {[%clk 0:00:36.4]} 26. Qf3
{[%clk 0:00:21.1]} 26... Bxf5 {[%clk 0:00:31.2]} 27. h3 {[%clk 0:00:12]} 27...
Qg6+ {[%clk 0:00:24.3]} 28. Qg3 {[%clk 0:00:10.1]} 28... Qxg3+ {[%clk
0:00:20.6]} 29. fxg3 {[%clk 0:00:10.3]} 29... Bxh3 {[%clk 0:00:21.2]} 30. Rf4
{[%clk 0:00:09.6]} 30... Rc2 {[%clk 0:00:17]} 31. Bxa7 {[%clk 0:00:07.6]} 31...
Rc1 {[%clk 0:00:15.3]} 32. Rd4 {[%clk 0:00:04.8]} 32... Bf6 {[%clk 0:00:14]} 33.
Rd6 {[%clk 0:00:02.1]} 33... Bg4 {[%clk 0:00:13.2]} 0-1

[Event "Late-Titled-Tuesday-Blitz-January-23-2024"]
[Site "Chess.com"]
[Date "2024.01.23"]
[Round "11"]
[White "dosto07"]
[Black "Bkmzzzzz"]
[Result "1-0"]
[WhiteElo "2542"]
[BlackElo "2422"]
[TimeControl "180+1"]
[EndTime "16:02:36 PST"]
[Termination "dosto07 won by resignation"]

1. e4 {[%clk 0:03:00.9]} 1... d6 {[%clk 0:02:59.6]} 2. d4 {[%clk 0:02:59.6]}
2... Nf6 {[%clk 0:02:58.2]} 3. Nc3 {[%clk 0:02:59]} 3... e5 {[%clk 0:02:58.9]}
4. Nf3 {[%clk 0:02:58.8]} 4... Nbd7 {[%clk 0:02:58.5]} 5. Bc4 {[%clk 0:02:58.4]}
5... Be7 {[%clk 0:02:59.2]} 6. O-O {[%clk 0:02:58]} 6... O-O {[%clk 0:02:59.4]}
7. Re1 {[%clk 0:02:58.3]} 7... c6 {[%clk 0:02:59.8]} 8. a4 {[%clk 0:02:58.8]}
8... b6 {[%clk 0:02:59.7]} 9. d5 {[%clk 0:02:57.6]} 9... cxd5 {[%clk 0:03:00]}
10. Nxd5 {[%clk 0:02:57.4]} 10... Nxd5 {[%clk 0:03:00]} 11. Bxd5 {[%clk
0:02:57.7]} 11... Rb8 {[%clk 0:03:00.5]} 12. Be3 {[%clk 0:02:48.7]} 12... Nf6
{[%clk 0:03:00.1]} 13. Qd3 {[%clk 0:02:40.1]} 13... Nxd5 {[%clk 0:02:59]} 14.
Qxd5 {[%clk 0:02:40.2]} 14... Bb7 {[%clk 0:02:54.8]} 15. Qd3 {[%clk 0:02:40]}
15... f5 {[%clk 0:02:54]} 16. exf5 {[%clk 0:02:25.1]} 16... e4 {[%clk 0:02:54]}
17. Qb3+ {[%clk 0:02:24.1]} 17... Kh8 {[%clk 0:02:54.5]} 18. Nd4 {[%clk
0:02:23.5]} 18... Qd7 {[%clk 0:02:33.4]} 19. a5 {[%clk 0:02:04.3]} 19... bxa5
{[%clk 0:02:01.3]} 20. Rxa5 {[%clk 0:01:55.2]} 20... a6 {[%clk 0:02:01.3]} 21.
Qe6 {[%clk 0:01:51.5]} 21... Qc7 {[%clk 0:01:47.6]} 22. Qa2 {[%clk 0:01:46.4]}
22... Rfe8 {[%clk 0:01:29.6]} 23. c3 {[%clk 0:01:44.7]} 23... Bf6 {[%clk
0:01:29.3]} 24. Ra4 {[%clk 0:01:36.3]} 24... d5 {[%clk 0:01:25.7]} 25. h3 {[%clk
0:01:33.9]} 25... Qd7 {[%clk 0:01:15.4]} 26. Rb4 {[%clk 0:01:26.7]} 26... Ra8
{[%clk 0:00:53.9]} 27. Qa4 {[%clk 0:01:15.4]} 27... Qxa4 {[%clk 0:00:35]} 28.
Rxa4 {[%clk 0:01:15]} 28... Bxd4 {[%clk 0:00:35.3]} 29. Bxd4 {[%clk 0:01:13.9]}
29... Bc6 {[%clk 0:00:34.9]} 30. Ra5 {[%clk 0:01:10.7]} 30... Bb5 {[%clk
0:00:29.2]} 31. Re3 {[%clk 0:01:07]} 31... Kg8 {[%clk 0:00:27.7]} 32. Rg3 {[%clk
0:01:06]} 32... Re7 {[%clk 0:00:20]} 33. f6 {[%clk 0:01:05.9]} 33... Rf7 {[%clk
0:00:20.4]} 34. Rxg7+ {[%clk 0:01:03.7]} 34... Rxg7 {[%clk 0:00:20.5]} 35. fxg7
{[%clk 0:01:04.5]} 35... Kf7 {[%clk 0:00:21.1]} 36. Ra1 {[%clk 0:00:57.9]} 36...
Rb8 {[%clk 0:00:21.2]} 37. b4 {[%clk 0:00:54.9]} 37... Rc8 {[%clk 0:00:20.7]}
38. Re1 {[%clk 0:00:54.3]} 38... Rc4 {[%clk 0:00:20.7]} 39. Re3 {[%clk
0:00:52.7]} 39... Rc8 {[%clk 0:00:13.9]} 40. Rg3 {[%clk 0:00:52.3]} 40... Rg8
{[%clk 0:00:14.6]} 41. Rg5 {[%clk 0:00:51.7]} 41... Bc4 {[%clk 0:00:14.9]} 42.
Rf5+ {[%clk 0:00:50.3]} 42... Kg6 {[%clk 0:00:14.7]} 43. Rf8 {[%clk 0:00:49.1]}
43... Rxg7 {[%clk 0:00:12.6]} 44. Bxg7 {[%clk 0:00:49]} 44... Kxg7 {[%clk
0:00:13.5]} 45. Rc8 {[%clk 0:00:45.2]} 45... Kg6 {[%clk 0:00:12.4]} 46. Rc7
{[%clk 0:00:44.3]} 46... h6 {[%clk 0:00:12]} 47. g4 {[%clk 0:00:44.1]} 47... Kg5
{[%clk 0:00:11.7]} 48. Kg2 {[%clk 0:00:43.8]} 48... Kg6 {[%clk 0:00:10.2]} 49.
Kg3 {[%clk 0:00:43.7]} 49... Kg5 {[%clk 0:00:10.5]} 50. Rc6 {[%clk 0:00:41.6]}
1-0